fUST/lending_fUST_20250702
["ID","MTS","AMOUNT","RATE_DAILY","PERIOD"]
[369062197,1751448652728,-567.17,0.00018356,2]
[369062198,1751448652737,-518.44,0.00018356,2]
[369062199,1751448652747,-460.0,0.00018356,2]
[369062200,1751448652756,-557.63,0.00018356,2]
[369062201,1751448652766,-460.0,0.00018356,2]
[369062202,1751448652775,-460.0,0.00018356,2]
[369062203,1751448652784,-460.0,0.00018356,2]
[369062204,1751448652794,-904.82,0.00018356,2]
[369062205,1751448652804,-460.0,0.00018356,2]
[369062206,1751448652813,-460.0,0.00018356,2]
[369062207,1751448652822,-460.0,0.00018356,2]
[369062208,1751448652832,-460.0,0.00018356,2]
[369062209,1751448652841,-460.0,0.00018356,2]
[369062210,1751448652850,-477.75,0.00018356,2]
[369062211,1751448652860,-766.81,0.00018356,2]
[369062212,1751448652869,-460.0,0.00018356,2]
[369062213,1751448652878,-1086.24,0.00018356,2]
[369062214,1751448652887,-608.67,0.00018356,2]
[369062215,1751448652896,-376.72759872,0.00018356,2]
[369062216,1751448652906,-460.0,0.00018356,2]
[369062217,1751448652915,-460.0,0.00018356,2]
[369062218,1751448652924,-460.0,0.00018356,2]
[369062219,1751448652934,-460.0,0.00018356,2]
[369062220,1751448652943,-460.0,0.00018356,2]
[369062221,1751448652953,-460.0,0.00018356,2]
[369062222,1751448652962,-460.0,0.00018356,2]
[369062223,1751448652971,-460.0,0.00018356,2]
[369062224,1751448652981,-460.0,0.00018356,2]
[369062225,1751448652991,-460.0,0.00018356,2]
[369062226,1751448653000,-460.0,0.00018356,2]
[369062227,1751448653010,-945.26,0.00018356,2]
[369062228,1751448653020,-303.47581799,0.00018356,2]
[369062229,1751448653029,-460.0,0.00018356,2]
[369062230,1751448653038,-816.42,0.00018356,2]
[369062231,1751448653048,-460.0,0.00018356,2]
[369062232,1751448653057,-460.0,0.00018356,2]
[369062233,1751448653067,-521.7,0.00018356,2]
[369062234,1751448653076,-460.0,0.00018356,2]
[369062235,1751448653085,-726.91,0.00018356,2]
[369062236,1751448653095,-542.8,0.00018356,2]
[369062237,1751448653104,-460.0,0.00018356,2]
[369062238,1751448653114,-151.0,0.00018356,2]
[369062239,1751448653124,-5280.05,0.00018356,2]
[369062240,1751448653133,-1110.18,0.00018356,2]
[369062241,1751448653142,-526.57,0.00018356,2]
[369062242,1751448653152,-460.0,0.00018356,2]
[369062243,1751448653161,-1737.72,0.00018356,2]
[369062244,1751448653170,-460.0,0.00018356,2]
[369062245,1751448653180,-3448.81,0.00018356,2]
[369062246,1751448653190,-773.83,0.00018356,2]
[369062247,1751448653199,-798.89,0.00018356,2]
[369062248,1751448653209,-460.0,0.00018356,2]
[369062249,1751448653218,-1601.52,0.00018356,2]
[369062250,1751448653228,-981.86,0.00018356,2]
[369062251,1751448653237,-460.0,0.00018356,2]
[369062252,1751448653247,-639.2,0.00018356,2]
[369062253,1751448653256,-460.0,0.00018356,2]
[369062254,1751448653266,-460.0,0.00018356,2]
[369062255,1751448653276,-1252.66,0.00018356,2]
[369062256,1751448653285,-1779.81,0.00018356,2]
[369062257,1751448653295,-514.94,0.00018356,2]
[369062258,1751448653304,-460.0,0.00018356,2]
[369062259,1751448653314,-460.0,0.00018356,2]
[369062260,1751448653325,-543.32,0.00018356,2]
[369062261,1751448653334,-3043.23,0.00018356,2]
[369062262,1751448653344,-460.0,0.00018356,2]
[369062263,1751448653353,-1039.31,0.00018356,2]
[369062264,1751448653362,-673.44,0.00018356,2]
[369062265,1751448653372,-460.0,0.00018356,2]
[369062266,1751448653381,-752.26,0.00018356,2]
[369062267,1751448653391,-460.0,0.00018356,2]
[369062268,1751448653400,-493.22,0.00018356,2]
[369062269,1751448653409,-945.26,0.00018356,2]
[369062270,1751448653418,-460.0,0.00018356,2]
[369062271,1751448653428,-460.0,0.00018356,2]
[369062272,1751448653438,-460.0,0.00018356,2]
[369062273,1751448653448,-460.0,0.00018356,2]
[369062274,1751448653457,-151.0,0.00018356,2]
[369062275,1751448653467,-460.0,0.00018356,2]
[369062276,1751448653477,-2036.78,0.00018356,2]
[369062277,1751448653486,-850.18,0.00018356,2]
[369062278,1751448653495,-917.87,0.00018356,2]
[369062279,1751448653505,-738.02,0.00018356,2]
[369062280,1751448653514,-460.0,0.00018356,2]
[369062281,1751448653523,-2796.63,0.00018356,2]
[369062282,1751448653532,-601.73,0.00018356,2]
[369062283,1751448653542,-460.0,0.00018356,2]
[369062284,1751448653552,-520.175804,0.00018356,2]
[369062285,1751448653561,-460.0,0.00018356,2]
[369062286,1751448653570,-151.0,0.00018356,2]
[369062287,1751448653580,-520.175804,0.00018356,2]
[369062288,1751448653589,-460.0,0.00018356,2]
[369062289,1751448653599,-460.0,0.00018356,2]
[369062290,1751448653609,-704.62,0.00018356,2]
[369062291,1751448653619,-460.0,0.00018356,2]
[369062292,1751448653629,-556.49,0.00018356,2]
[369062293,1751448653638,-586.67,0.00018356,2]
[369062294,1751448653650,-918.17,0.00018356,2]
[369062295,1751448653660,-460.0,0.00018356,2]
[369062296,1751448653670,-2772.01,0.00018356,2]
[369062297,1751448653680,-4661.58,0.00018356,2]
[369062298,1751448653690,-460.0,0.00018356,2]
[369062299,1751448653700,-521.34,0.00018356,2]
[369062300,1751448653709,-690.26,0.00018356,2]
[369062301,1751448653719,-657.84,0.00018356,2]
[369062302,1751448653729,-4403.74,0.00018356,2]
[369062303,1751448653739,-763.68,0.00018356,2]
[369062304,1751448653749,-3041.35,0.00018356,2]
[369062305,1751448653760,-460.0,0.00018356,2]
[369062306,1751448653772,-1765.57,0.00018356,2]
[369062307,1751448653784,-460.0,0.00018356,2]
[369062308,1751448653795,-1237.16,0.00018356,2]
[369062309,1751448653807,-1222.14,0.00018356,2]
[369062310,1751448653818,-714.34,0.00018356,2]
[369062311,1751448653829,-460.0,0.00018356,2]
[369062312,1751448653840,-460.0,0.00018356,2]
[369062313,1751448653853,-703.87,0.00018356,2]
[369062314,1751448653863,-460.0,0.00018356,2]
[369062315,1751448653873,-646.36,0.00018356,2]
[369062316,1751448653884,-425.15402257,0.00018356,2]
[369062317,1751448653894,-829.430214,0.00018356,2]
[369062318,1751448653904,-460.0,0.00018356,2]
[369062319,1751448653914,-460.3,0.00018356,2]
[369062320,1751448653924,-829.430214,0.00018356,2]
[369062321,1751448653934,-1387.48,0.00018356,2]
[369062322,1751448653943,-680.46,0.00018356,2]
[369062323,1751448653953,-151.0,0.00018356,2]
[369062324,1751448653963,-151.0,0.00018356,2]
[369062325,1751448653973,-1945.84,0.00018356,2]
[369062326,1751448653983,-1561.58,0.00018356,2]
[369062327,1751448653992,-793.44,0.00018356,2]
[369062328,1751448654002,-6281.5,0.00018356,2]
[369062329,1751448654011,-1905.09,0.00018356,2]
[369062330,1751448654022,-779.68,0.00018356,2]
[369062331,1751448654032,-460.0,0.00018356,2]
[369062332,1751448654041,-2000.0,0.00018416,2]
[369062333,1751448654051,-2000.0,0.00018416,2]
[369062334,1751448654060,-1167.65847021,0.00018452,2]
[369062335,1751448654070,-552.0,0.00018464,2]
[369062336,1751448654080,-552.0,0.000185,2]
[369062337,1751448654089,-2241.72420647,0.0001853,2]
[369062338,1751448654101,-676.41,0.0001863,2]
[369062339,1751448654110,-567.17,0.0001863,2]
[369062340,1751448654119,-518.44,0.0001863,2]
[369062341,1751448654129,-460.0,0.0001863,2]
[369062342,1751448654139,-557.63,0.0001863,2]
[369062343,1751448654148,-385.62834072,0.0001863,2]
[369062344,1751448654158,-460.0,0.0001863,2]
[369062345,1751448654167,-904.82,0.0001863,2]
[369062346,1751448654178,-463.17672763,0.0001863,2]
[369062347,1751448654187,-460.0,0.0001863,2]
[369062348,1751448654197,-599.98403437,0.0001863,2]
[369062349,1751448654207,-460.0,0.0001863,2]
[369062350,1751448654217,-460.0,0.0001863,2]
[369062351,1751448654226,-477.75,0.0001863,2]
[369062352,1751448654236,-766.81,0.0001863,2]
[369062353,1751448654245,-460.0,0.0001863,2]
[369062354,1751448654254,-1086.24,0.0001863,2]
[369062355,1751448654264,-608.67,0.0001863,2]
[369062356,1751448654273,-460.0,0.0001863,2]
[369062357,1751448654283,-151.0,0.0001863,2]
[369062358,1751448654292,-460.0,0.0001863,2]
[369062359,1751448654302,-460.0,0.0001863,2]
[369062360,1751448654311,-151.0,0.0001863,2]
[369062361,1751448654320,-460.0,0.0001863,2]
[369062362,1751448654330,-460.0,0.0001863,2]
[369062363,1751448654340,-460.0,0.0001863,2]
[369062364,1751448654349,-460.0,0.0001863,2]
[369062365,1751448654359,-460.0,0.0001863,2]
[369062366,1751448654368,-460.0,0.0001863,2]
[369062367,1751448654378,-460.0,0.0001863,2]
[369062368,1751448654387,-460.0,0.0001863,2]
[369062369,1751448654396,-945.26,0.0001863,2]
[369062370,1751448654406,-151.0,0.0001863,2]
[369062371,1751448654415,-460.0,0.0001863,2]
[369062372,1751448654424,-151.0,0.0001863,2]
[369062373,1751448654433,-816.42,0.0001863,2]
[369062374,1751448654442,-460.0,0.0001863,2]
[369062375,1751448654451,-460.0,0.0001863,2]
[369062376,1751448654460,-521.7,0.0001863,2]
[369062377,1751448654470,-460.0,0.0001863,2]
[369062378,1751448654479,-726.91,0.0001863,2]
[369062379,1751448654488,-151.0,0.0001863,2]
[369062380,1751448654498,-403.646706,0.0001863,2]
[369062381,1751448654507,-403.646706,0.0001863,2]
[369062382,1751448654517,-542.8,0.0001863,2]
[369062383,1751448654527,-460.0,0.0001863,2]
[369062384,1751448654536,-5280.05,0.0001863,2]
[369062385,1751448654546,-1110.18,0.0001863,2]
[369062386,1751448654555,-526.57,0.0001863,2]
[369062387,1751448654565,-460.0,0.0001863,2]
[369062388,1751448654574,-1737.72,0.0001863,2]
[369062389,1751448654583,-460.0,0.0001863,2]
[369062390,1751448654593,-3448.81,0.0001863,2]
[369062391,1751448654602,-773.83,0.0001863,2]
[369062392,1751448654611,-798.89,0.0001863,2]
[369062393,1751448654621,-460.0,0.0001863,2]
[369062394,1751448654630,-1601.52,0.0001863,2]
[369062395,1751448654640,-400.458093,0.0001863,2]
[369062396,1751448654652,-981.86,0.0001863,2]
[369062397,1751448654661,-460.0,0.0001863,2]
[369062398,1751448654671,-639.2,0.0001863,2]
[369062399,1751448654680,-400.458093,0.0001863,2]
[369062400,1751448654690,-460.0,0.0001863,2]
[369062401,1751448654700,-315.078203,0.0001863,2]
[369062402,1751448654709,-460.0,0.0001863,2]
[369062403,1751448654720,-315.078203,0.0001863,2]
[369062404,1751448654729,-1252.66,0.0001863,2]
[369062405,1751448654739,-1779.81,0.0001863,2]
[369062406,1751448654748,-514.94,0.0001863,2]
[369062407,1751448654758,-151.0,0.0001863,2]
[369062408,1751448654767,-460.0,0.0001863,2]
[369062409,1751448654776,-460.0,0.0001863,2]
[369062410,1751448654785,-543.32,0.0001863,2]
[369062411,1751448654795,-3043.23,0.0001863,2]
[369062412,1751448654804,-460.0,0.0001863,2]
[369062413,1751448654813,-1039.31,0.0001863,2]
[369062414,1751448654823,-673.44,0.0001863,2]
[369062415,1751448654946,-549.247436,0.0001863,2]
[369062416,1751448654956,-460.0,0.0001863,2]
[369062417,1751448654966,-752.26,0.0001863,2]
[369062418,1751448654975,-549.247436,0.0001863,2]
[369062419,1751448654985,-460.0,0.0001863,2]
[369062420,1751448654994,-493.22,0.0001863,2]
[369062421,1751448655004,-945.26,0.0001863,2]
[369062422,1751448655014,-460.0,0.0001863,2]
[369062423,1751448655023,-460.0,0.0001863,2]
[369062424,1751448655033,-460.0,0.0001863,2]
[369062425,1751448655043,-460.0,0.0001863,2]
[369062426,1751448655052,-460.0,0.0001863,2]
[369062427,1751448655061,-2036.78,0.0001863,2]
[369062428,1751448655070,-850.18,0.0001863,2]
[369062429,1751448655080,-917.87,0.0001863,2]
[369062430,1751448655089,-738.02,0.0001863,2]
[369062431,1751448655098,-460.0,0.0001863,2]
[369062432,1751448655108,-2796.63,0.0001863,2]
[369062433,1751448655117,-601.73,0.0001863,2]
[369062434,1751448655127,-460.0,0.0001863,2]
[369062435,1751448655136,-460.0,0.0001863,2]
[369062436,1751448655146,-460.0,0.0001863,2]
[369062437,1751448655156,-704.62,0.0001863,2]
[369062438,1751448655165,-460.0,0.0001863,2]
[369062439,1751448655175,-556.49,0.0001863,2]
[369062440,1751448655185,-586.67,0.0001863,2]
[369062441,1751448655195,-460.0,0.0001863,2]
[369062442,1751448655205,-2772.01,0.0001863,2]
[369062443,1751448655214,-918.17,0.0001863,2]
[369062444,1751448655225,-4661.58,0.0001863,2]
[369062445,1751448655234,-460.0,0.0001863,2]
[369062446,1751448655244,-521.34,0.0001863,2]
[369062447,1751448655253,-690.26,0.0001863,2]
[369062448,1751448655263,-657.84,0.0001863,2]
[369062449,1751448655272,-4403.74,0.0001863,2]
[369062450,1751448655281,-763.68,0.0001863,2]
[369062451,1751448655291,-3041.35,0.0001863,2]
[369062452,1751448655300,-460.0,0.0001863,2]
[369062453,1751448655309,-1765.57,0.0001863,2]
[369062454,1751448655319,-460.0,0.0001863,2]
[369062455,1751448655329,-1237.16,0.0001863,2]
[369062456,1751448655338,-1222.14,0.0001863,2]
[369062457,1751448655348,-714.34,0.0001863,2]
[369062458,1751448655358,-460.0,0.0001863,2]
[369062459,1751448655367,-460.0,0.0001863,2]
[369062460,1751448655377,-703.87,0.0001863,2]
[369062461,1751448655386,-460.0,0.0001863,2]
[369062462,1751448655396,-646.36,0.0001863,2]
[369062463,1751448655405,-460.0,0.0001863,2]
[369062464,1751448655415,-460.3,0.0001863,2]
[369062465,1751448655424,-1387.48,0.0001863,2]
[369062466,1751448655434,-680.46,0.0001863,2]
[369062467,1751448655443,-1945.84,0.0001863,2]
[369062468,1751448655453,-1561.58,0.0001863,2]
[369062469,1751448655462,-793.44,0.0001863,2]
[369062470,1751448655472,-6281.5,0.0001863,2]
[369062471,1751448655482,-1905.09,0.0001863,2]
[369062472,1751448655493,-156.053177,0.0001863,2]
[369062473,1751448655502,-779.68,0.0001863,2]
[369062474,1751448655511,-460.0,0.0001863,2]
[369062475,1751448655520,-156.053177,0.0001863,2]
[369062476,1751448655530,-2257.2143559,0.00018664,2]
[369062477,1751448655539,-1000.0,0.000187,2]
[369062478,1751448655548,-154.5820102,0.00018703,2]
[369062479,1751448655558,-1167.65847021,0.00018762,2]
[369062480,1751448655567,-3422.74566059,0.000189,2]
[369062481,1751448655577,-240.519655,0.000189,2]
[369062482,1751448655586,-151.0,0.000189,2]
[369062483,1751448655595,-151.0,0.000189,2]
[369062484,1751448655606,-151.0,0.000189,2]
[369062485,1751448655615,-151.0,0.000189,2]
[369062486,1751448655624,-151.0,0.000189,2]
[369062487,1751448655633,-486.38795,0.000189,2]
[369062488,1751448655644,-676.41,0.00018904,2]
[369062489,1751448655654,-567.17,0.00018904,2]
[369062490,1751448655664,-518.44,0.00018904,2]
[369062491,1751448655673,-460.0,0.00018904,2]
[369062492,1751448655683,-557.63,0.00018904,2]
[369062493,1751448655693,-460.0,0.00018904,2]
[369062494,1751448655702,-904.82,0.00018904,2]
[369062495,1751448655712,-460.0,0.00018904,2]
[369062496,1751448655722,-460.0,0.00018904,2]
[369062497,1751448655732,-460.0,0.00018904,2]
[369062498,1751448655742,-477.75,0.00018904,2]
[369062499,1751448655751,-151.0,0.00018904,2]
[369062500,1751448655760,-766.81,0.00018904,2]
[369062501,1751448655769,-151.0,0.00018904,2]
[369062502,1751448655780,-1086.24,0.00018904,2]
[369062503,1751448655790,-151.0,0.00018904,2]
[369062504,1751448655800,-151.0,0.00018904,2]
[369062505,1751448655810,-151.0,0.00018904,2]
[369062506,1751448655821,-608.67,0.00018904,2]
[369062507,1751448655831,-151.0,0.00018904,2]
[369062508,1751448655847,-460.0,0.00018904,2]
[369062509,1751448655863,-460.0,0.00018904,2]
[369062510,1751448655873,-543.15910438,0.00018904,2]
[369062511,1751448655883,-460.0,0.00018904,2]
[369062512,1751448655893,-460.0,0.00018904,2]
[369062513,1751448655903,-460.0,0.00018904,2]
[369062514,1751448655913,-460.0,0.00018904,2]
[369062515,1751448655923,-460.0,0.00018904,2]
[369062516,1751448655933,-167.999166,0.00018904,2]
[369062517,1751448655942,-460.0,0.00018904,2]
[369062518,1751448655952,-167.999166,0.00018904,2]
[369062519,1751448655962,-460.0,0.00018904,2]
[369062520,1751448655971,-460.0,0.00018904,2]
[369062521,1751448655981,-945.26,0.00018904,2]
[369062522,1751448655990,-460.0,0.00018904,2]
[369062523,1751448656000,-816.42,0.00018904,2]
[369062524,1751448656009,-460.0,0.00018904,2]
[369062525,1751448656019,-151.0,0.00018904,2]
[369062526,1751448656028,-460.0,0.00018904,2]
[369062527,1751448656038,-521.7,0.00018904,2]
[369062528,1751448656047,-460.0,0.00018904,2]
[369062529,1751448656057,-289.209406,0.00018904,2]
[369062530,1751448656066,-151.0,0.00018904,2]
[369062531,1751448656076,-289.209406,0.00018904,2]
[369062532,1751448656085,-726.91,0.00018904,2]
[369062533,1751448656095,-351.966669,0.00018904,2]
[369062534,1751448656105,-351.966669,0.00018904,2]
[369062535,1751448656115,-542.8,0.00018904,2]
[369062536,1751448656124,-460.0,0.00018904,2]
[369062537,1751448656133,-5280.05,0.00018904,2]
[369062538,1751448656142,-1110.18,0.00018904,2]
[369062539,1751448656152,-151.0,0.00018904,2]
[369062540,1751448656161,-526.57,0.00018904,2]
[369062541,1751448656170,-151.0,0.00018904,2]
[369062542,1751448656180,-460.0,0.00018904,2]
[369062543,1751448656189,-1737.72,0.00018904,2]
[369062544,1751448656198,-460.0,0.00018904,2]
[369062545,1751448656207,-3448.81,0.00018904,2]
[369062546,1751448656216,-773.83,0.00018904,2]
[369062547,1751448656225,-798.89,0.00018904,2]
[369062548,1751448656235,-460.0,0.00018904,2]
[369062549,1751448656244,-1601.52,0.00018904,2]
[369062550,1751448656254,-981.86,0.00018904,2]
[369062551,1751448656263,-460.0,0.00018904,2]
[369062552,1751448656272,-639.2,0.00018904,2]
[369062553,1751448656281,-460.0,0.00018904,2]
[369062554,1751448656290,-460.0,0.00018904,2]
[369062555,1751448656300,-1252.66,0.00018904,2]
[369062556,1751448656309,-1779.81,0.00018904,2]
[369062557,1751448656319,-514.94,0.00018904,2]
[369062558,1751448656328,-460.0,0.00018904,2]
[369062559,1751448656337,-460.0,0.00018904,2]
[369062560,1751448656347,-543.32,0.00018904,2]
[369062561,1751448656357,-3043.23,0.00018904,2]
[369062562,1751448656366,-460.0,0.00018904,2]
[369062563,1751448656375,-1039.31,0.00018904,2]
[369062564,1751448656385,-673.44,0.00018904,2]
[369062565,1751448656394,-460.0,0.00018904,2]
[369062566,1751448656403,-752.26,0.00018904,2]
[369062567,1751448656413,-460.0,0.00018904,2]
[369062568,1751448656422,-493.22,0.00018904,2]
[369062569,1751448656431,-945.26,0.00018904,2]
[369062570,1751448656440,-460.0,0.00018904,2]
[369062571,1751448656450,-460.0,0.00018904,2]
[369062572,1751448656459,-460.0,0.00018904,2]
[369062573,1751448656468,-599.35,0.00018904,2]
[369062574,1751448656477,-154.5618904,0.00018904,2]
[369062575,1751448656487,-2036.78,0.00018904,2]
[369062576,1751448656496,-850.18,0.00018904,2]
[369062577,1751448656505,-917.87,0.00018904,2]
[369062578,1751448656515,-738.02,0.00018904,2]
[369062579,1751448656524,-460.0,0.00018904,2]
[369062580,1751448656533,-2796.63,0.00018904,2]
[369062581,1751448656543,-601.73,0.00018904,2]
[369062582,1751448656553,-460.0,0.00018904,2]
[369062583,1751448656562,-460.0,0.00018904,2]
[369062584,1751448656572,-460.0,0.00018904,2]
[369062585,1751448656581,-704.62,0.00018904,2]
[369062586,1751448656590,-460.0,0.00018904,2]
[369062587,1751448656599,-556.49,0.00018904,2]
[369062588,1751448656609,-586.67,0.00018904,2]
[369062589,1751448656618,-273.77294537,0.00018904,2]
[369062590,1751448656627,-2772.01,0.00018904,2]
[369062591,1751448656637,-918.17,0.00018904,2]
[369062592,1751448656648,-4661.58,0.00018904,2]
[369062593,1751448656658,-460.0,0.00018904,2]
[369062594,1751448656667,-521.34,0.00018904,2]
[369062595,1751448656677,-690.26,0.00018904,2]
[369062596,1751448656686,-657.84,0.00018904,2]
[369062597,1751448656696,-4403.74,0.00018904,2]
[369062598,1751448656712,-763.68,0.00018904,2]
[369062599,1751448656723,-3041.35,0.00018904,2]
[369062600,1751448656733,-460.0,0.00018904,2]
[369062601,1751448656742,-1765.57,0.00018904,2]
[369062602,1751448656754,-460.0,0.00018904,2]
[369062603,1751448656764,-1237.16,0.00018904,2]
[369062604,1751448656773,-1222.14,0.00018904,2]
[369062605,1751448656783,-714.34,0.00018904,2]
[369062606,1751448656792,-460.0,0.00018904,2]
[369062607,1751448656801,-460.0,0.00018904,2]
[369062608,1751448656811,-703.87,0.00018904,2]
[369062609,1751448656821,-460.0,0.00018904,2]
[369062610,1751448656830,-646.36,0.00018904,2]
[369062611,1751448656840,-460.0,0.00018904,2]
[369062612,1751448656850,-460.3,0.00018904,2]
[369062613,1751448656861,-1387.48,0.00018904,2]
[369062614,1751448656871,-680.46,0.00018904,2]
[369062615,1751448656882,-1945.84,0.00018904,2]
[369062616,1751448656892,-1561.58,0.00018904,2]
[369062617,1751448656901,-793.44,0.00018904,2]
[369062618,1751448656911,-6281.5,0.00018904,2]
[369062619,1751448656923,-1905.09,0.00018904,2]
[369062620,1751448656933,-779.68,0.00018904,2]
[369062621,1751448656943,-460.0,0.00018904,2]
[369062622,1751448656956,-219.73662008,0.00018964,2]
[369062623,1751448657098,-1438.43779679,0.00018964,2]
[369062624,1751448657110,-959.89563809,0.00018964,2]
[369062625,1751448657120,-14.68895841,0.00018964,2]
[369062626,1751448657415,-8.72281869,0.00018082,2]
[369062627,1751448657635,-151.0,0.00016712,2]
[369062628,1751448657646,-142.27718131,0.00018082,2]
[369062629,1751448657658,-486.38795,0.00018082,2]
[369062630,1751448657668,-486.38795,0.000189,2]
[369062631,1751448657677,-2485.31104159,0.00018964,2]
[369062632,1751448657687,-302.54622906,0.00019,2]
[369062633,1751448657697,-552.0,0.00019056,2]
[369062634,1751448657707,-1167.65847021,0.00019072,2]
[369062635,1751448657716,-215.0738,0.00019137,2]
[369062636,1751448657727,-165.473611,0.0001916,3]
[369062637,1751448657736,-676.41,0.00019178,2]
[369062638,1751448657746,-567.17,0.00019178,2]
[369062639,1751448657755,-518.44,0.00019178,2]
[369062640,1751448657764,-460.0,0.00019178,2]
[369062641,1751448657774,-557.63,0.00019178,2]
[369062642,1751448657783,-300.0,0.00019178,2]
[369062643,1751448657792,-460.0,0.00019178,2]
[369062644,1751448657801,-904.82,0.00019178,2]
[369062645,1751448657811,-180.081975,0.00019178,2]
[369062646,1751448657821,-151.0,0.00019178,2]
[369062647,1751448657830,-151.0,0.00019178,2]
[369062648,1751448657839,-180.081975,0.00019178,2]
[369062649,1751448657849,-153.12975,0.00019178,2]
[369062650,1751448657859,-460.0,0.00019178,2]
[369062651,1751448657868,-151.0,0.00019178,2]
[369062652,1751448657877,-460.0,0.00019178,2]
[369062653,1751448657886,-325.49976988,0.00019178,2]
[369062654,1751448657895,-477.75,0.00019178,2]
[369062655,1751448657905,-766.81,0.00019178,2]
[369062656,1751448657915,-151.0,0.00019178,2]
[369062657,1751448657925,-1086.24,0.00019178,2]
[369062658,1751448657935,-151.0,0.00019178,2]
[369062659,1751448657945,-608.67,0.00019178,2]
[369062660,1751448657954,-460.0,0.00019178,2]
[369062661,1751448657964,-151.0,0.00019178,2]
[369062662,1751448657973,-460.0,0.00019178,2]
[369062663,1751448657982,-1022.291429,0.00019178,2]
[369062664,1751448657992,-1022.291429,0.00019178,2]
[369062665,1751448658001,-151.897169,0.00019178,2]
[369062666,1751448658010,-460.0,0.00019178,2]
[369062667,1751448658020,-460.0,0.00019178,2]
[369062668,1751448658029,-460.0,0.00019178,2]
[369062669,1751448658039,-460.0,0.00019178,2]
[369062670,1751448658048,-460.0,0.00019178,2]
[369062671,1751448658057,-460.0,0.00019178,2]
[369062672,1751448658068,-460.0,0.00019178,2]
[369062673,1751448658077,-460.0,0.00019178,2]
[369062674,1751448658087,-945.26,0.00019178,2]
[369062675,1751448658096,-151.0,0.00019178,2]
[369062676,1751448658105,-460.0,0.00019178,2]
[369062677,1751448658114,-151.0,0.00019178,2]
[369062678,1751448658124,-816.42,0.00019178,2]
[369062679,1751448658134,-460.0,0.00019178,2]
[369062680,1751448658143,-460.0,0.00019178,2]
[369062681,1751448658152,-521.7,0.00019178,2]
[369062682,1751448658162,-460.0,0.00019178,2]
[369062683,1751448658172,-726.91,0.00019178,2]
[369062684,1751448658181,-151.0,0.00019178,2]
[369062685,1751448658191,-403.646706,0.00019178,2]
[369062686,1751448658201,-403.646706,0.00019178,2]
[369062687,1751448658211,-542.8,0.00019178,2]
[369062688,1751448658221,-460.0,0.00019178,2]
[369062689,1751448658231,-151.0,0.00019178,2]
[369062690,1751448658240,-1110.18,0.00019178,2]
[369062691,1751448658251,-526.57,0.00019178,2]
[369062692,1751448658260,-460.0,0.00019178,2]
[369062693,1751448658270,-1737.72,0.00019178,2]
[369062694,1751448658279,-460.0,0.00019178,2]
[369062695,1751448658288,-773.83,0.00019178,2]
[369062696,1751448658298,-798.89,0.00019178,2]